bitfinex-derivatives/quotes_SOLF0:USTF0_20250109
["timestamp","ask_amount","ask_price","bid_price","bid_amount"]
[1736456333447,32.72809385,185.25,185.19,2.7001]
[1736456333844,32.72809385,185.25,185.17,1.6506]
[1736456334149,32.72809385,185.33,185.17,34.37869385]
[1736456334550,32.72809385,185.33,185.25,2.6992]
[1736456335252,32.72809385,185.3,185.23,2.6995]
[1736456335749,2.6989,185.28,185.23,2.6995]
[1736456336143,2.6989,185.28,185.17,1.6506]
[1736456336945,32.72809385,185.3,185.17,1.6506]
[1736456337145,32.72809385,185.33,185.17,34.37869385]
[1736456337447,32.72809385,185.33,185.24,2.6994]
[1736456337641,2.6986,185.3,185.24,2.6994]
[1736456338251,35.42669385,185.3,185.24,2.6994]
[1736456338448,32.72809385,185.3,185.24,2.6994]
[1736456338651,32.72809385,185.27,185.17,1.6506]
[1736456339742,32.72809385,185.27,185.2,2.7001]
[1736456340141,32.72809385,185.27,185.17,1.6506]
[1736456340352,2.6993,185.25,185.17,1.6506]
[1736456340548,32.72809385,185.27,185.17,1.6506]
[1736456340753,2.6998,185.23,185.16,2.7006]
[1736456340948,32.72809385,185.24,185.14,1.6145]
[1736456341345,2.6999,185.22,185.15,2.7007]
[1736456341552,32.72809385,185.24,185.15,2.7007]
[1736456341753,32.72809385,185.24,185.14,1.6145]
[1736456342150,1.4929,185.26,185.14,1.6145]
[1736456342351,1.4929,185.26,185.14,34.34259385]
[1736456342551,5.92,185.27,185.15,1.6121]
[1736456343156,2.6992,185.26,185.2,2.6999]
[1736456343455,5.92,185.27,185.15,1.6121]
[1736456343657,38.64809385,185.27,185.15,1.6121]
[1736456344450,2.6996,185.24,185.18,2.7003]
[1736456344652,2.6996,185.24,185.14,1.6145]
[1736456344653,32.72809385,185.24,185.14,1.6145]
[1736456345550,32.72809385,185.21,185.05,1.6121]
[1736456345752,32.72809385,185.24,185.09,1.6238]
[1736456346154,32.72809385,185.24,185.1,32.72809385]
[1736456346749,2.7,185.21,185.16,2.7006]
[1736456347346,32.72809385,185.21,185.11,2.7013]
[1736456347556,32.72809385,185.21,185.09,1.6238]
[1736456348057,32.72809385,185.21,185.12,2.7012]
[1736456348457,2.7005,185.18,185.12,2.7012]
[1736456348657,32.72809385,185.21,185.14,2.7008]
[1736456349357,2.7002,185.19,185.14,2.7008]
[1736456349762,32.72809385,185.21,185.13,2.7011]
[1736456352054,88.01973158,185.23,185.09,1.6238]
[1736456352357,32.72809385,185.18,185.06,1.591]
[1736456352757,32.72809385,185.18,185.12,2.7012]
[1736456353157,2.7005,185.17,185.06,1.591]
[1736456353356,2.7005,185.17,185.13,2.7009]
[1736456354359,110.37474328,185.2,185.13,2.7009]
[1736456354862,2.7006,185.17,185.12,2.7012]
[1736456355559,2.7009,185.14,185.09,2.7015]
[1736456355759,2.7009,185.14,185.06,1.591]
[1736456355959,2.7011,185.13,185.08,2.7017]
[1736456356261,20.17340476,185.15,185.06,1.591]
[1736456356555,2.7013,185.12,185.06,4.293]
[1736456356761,20.17340476,185.15,185.06,4.293]
[1736456356961,88.01973158,185.13,185.06,2.702]
[1736456357364,2.7016,185.1,185.05,4.3203]
[1736456357765,2.7016,185.1,185.03,1.6123]
[1736456357957,2.7016,185.1,185.01,1.5689]
[1736456358155,88.01973158,185.11,185.0,1.4959]
[1736456358359,2.702,185.07,185.0,1.4959]
[1736456358962,20.17340476,185.09,185.0,1.4959]
[1736456359162,2.7018,185.08,185.02,2.7026]
[1736456359360,88.01973158,185.06,185.02,2.7026]
[1736456359565,88.01973158,185.06,185.05,2.7022]
[1736456360061,88.01973158,185.06,185.0,1.4959]
[1736456361062,110.37474328,185.05,185.0,1.4959]
[1736456361257,110.37474328,185.05,185.01,2.7028]
[1736456361458,110.37474328,185.05,185.0,1.4959]
[1736456361864,90.72173158,185.07,185.0,1.4959]
[1736456362364,88.01973158,185.06,185.0,1.4959]
[1736456362562,88.01973158,185.06,184.97,1.5689]
[1736456362768,2.7024,185.04,184.97,1.5689]
[1736456363667,20.17340476,185.03,184.94,1.6469]
[1736456365067,110.37474328,185.02,184.94,1.6469]
[1736456365468,110.37474328,185.02,185.0,2.7029]
[1736456365766,88.01973158,185.04,185.0,2.7029]
[1736456365955,88.01973158,185.04,184.94,1.6469]
[1736456366155,2.7026,185.03,184.98,2.7033]
[1736456366559,88.01973158,185.04,184.89,5.92]
[1736456366759,20.17340476,185.02,184.87,23.39320476]
[1736456366967,20.17340476,185.02,184.88,1.5372]
[1736456367461,20.17340476,184.99,184.88,1.5372]
[1736456367861,20.17340476,184.96,184.87,1.6289]
[1736456368065,20.17340476,184.96,184.83,1.5233]
[1736456368674,20.17340476,184.93,184.83,1.5233]
[1736456369161,2.7043,184.91,184.83,1.5233]
[1736456369363,20.17340476,184.93,184.81,1.5843]
[1736456369569,2.7046,184.9,184.84,2.7052]
[1736456370066,1.6341,184.92,184.81,1.5843]
[1736456370263,20.17340476,184.96,184.81,1.5843]
[1736456370464,88.01973158,184.95,184.82,20.17340476]
[1736456370666,88.01973158,184.95,184.92,2.7041]
[1736456370864,88.01973158,184.95,184.85,20.17340476]
[1736456371063,145.6911549,184.97,184.88,20.17340476]
[1736456371265,110.49073972,185.02,184.88,20.17340476]
[1736456371867,2.7031,185.0,184.88,20.17340476]
[1736456372059,110.43869322,185.01,184.87,1.589]
[1736456372469,2.7034,184.97,184.91,2.7043]
[1736456372773,110.43869322,185.01,184.88,20.17340476]
[1736456373371,1.5506,185.02,184.92,2.704]
[1736456373372,2.703,185.0,184.92,2.704]
[1736456373573,2.703,185.0,184.9,1.5107]
[1736456374073,2.7032,184.99,184.93,2.704]
[1736456374276,2.7032,184.99,184.9,1.5107]
[1736456374277,123.15645929,185.02,184.9,1.5107]
[1736456374769,24.37495826,185.01,184.9,1.5107]
[1736456375270,2.703,185.01,184.9,1.5107]
[1736456375472,34.38972433,185.02,184.9,1.5107]
[1736456375673,2.703,185.0,184.94,2.7037]
[1736456376169,34.38972433,185.02,184.9,1.5107]
[1736456376372,32.83912433,184.99,184.87,1.589]
[1736456376669,2.7036,184.97,184.91,2.7043]
[1736456376867,32.83912433,184.99,184.86,1.5675]
[1736456378073,88.76673496,185.01,184.86,34.40662433]
[1736456378264,88.76673496,185.01,184.89,32.83912433]
[1736456378463,2.7029,185.0,184.94,2.7036]
[1736456379177,1.5506,185.02,184.89,32.83912433]
[1736456379474,1.5506,185.02,184.96,2.7033]
[1736456379868,1.5506,185.02,184.97,2.7032]
[1736456380266,1.5506,185.02,184.89,32.83912433]
[1736456380973,1.5506,185.02,184.88,5.92]
[1736456381175,2.7027,185.01,184.95,2.7034]
[1736456381577,54.51923689,185.06,184.9,32.83912433]
[1736456381770,121.60585929,185.06,184.9,32.83912433]
[1736456382674,32.83912433,185.06,184.9,32.83912433]
[1736456383369,1.5161,185.07,184.93,32.83912433]
[1736456383571,1.5161,185.07,184.94,1.5286]
[1736456383769,1.5161,185.07,184.99,2.7028]
[1736456384176,2.7023,185.04,184.99,2.7028]
[1736456384378,1.5161,185.07,184.98,2.7031]
[1736456384574,32.83912433,185.06,184.94,1.5316]
[1736456385475,2.7024,185.03,184.94,1.5316]
[1736456385874,32.83912433,185.06,184.94,1.5316]
[1736456386074,2.7022,185.05,184.99,2.7028]
[1736456386379,32.83912433,185.06,184.99,2.7028]
[1736456386576,2.7022,185.04,184.99,2.7028]
[1736456386982,2.702,185.06,185.01,2.7025]
[1736456388378,2.702,185.06,185.01,2.7026]
[1736456388577,2.702,185.06,184.94,1.5316]
[1736456389274,1.5161,185.07,184.94,1.5316]
[1736456389577,88.76673496,185.1,184.96,32.83912433]
[1736456389779,88.76673496,185.1,185.03,2.7022]
[1736456389979,2.7015,185.09,184.97,3.2129]
[1736456390176,88.76673496,185.1,184.97,3.2129]
[1736456390478,93.09693496,185.11,185.07,2.7018]
[1736456391077,93.09693496,185.11,185.06,2.7019]
[1736456391285,4.3302,185.11,185.06,2.7019]
[1736456391576,2.7013,185.1,185.06,2.7019]
[1736456392274,2.7013,185.1,184.99,32.83912433]
[1736456392275,91.46783496,185.12,184.99,32.83912433]
[1736456392470,91.46783496,185.12,185.02,32.83912433]
[1736456392471,88.76673496,185.12,185.02,32.83912433]
[1736456392677,88.76673496,185.13,185.03,1.6027]
[1736456393275,88.76673496,185.16,185.04,26.07487606]
[1736456393573,88.76673496,185.16,185.05,1.6]
[1736456393778,88.76673496,185.16,185.15,2.7006]
[1736456393978,88.76673496,185.19,185.15,2.7006]
[1736456394575,88.76673496,185.19,185.07,20.17487606]
[1736456394771,2.7002,185.18,185.07,20.17487606]
[1736456395273,1.5266,185.22,185.14,2.7006]
[1736456395477,1.5266,185.22,185.07,20.17487606]
[1736456395670,20.17487606,185.2,185.06,1.5251]
[1736456395874,20.17487606,185.2,185.11,2.7011]
[1736456396074,2.7004,185.17,185.11,2.7011]
[1736456396278,1.5266,185.22,185.07,20.17487606]
[1736456396476,1.5266,185.22,185.1,20.17487606]
[1736456396972,2.6995,185.23,185.18,2.7001]
[1736456397178,2.6995,185.23,185.06,1.5251]
[1736456397179,1.3276,185.25,185.1,20.17487606]
[1736456397578,1.3276,185.25,185.17,2.7002]
[1736456397885,2.6996,185.23,185.17,2.7002]
[1736456398182,1.3276,185.25,185.17,2.7002]
[1736456398372,2.6999,185.21,185.15,2.7005]
[1736456398578,20.17487606,185.21,185.06,1.5251]
[1736456399376,20.17487606,185.24,185.07,20.17487606]
[1736456399682,20.17487606,185.24,185.1,20.17487606]
[1736456400073,2.6995,185.23,185.17,2.7002]
[1736456400479,1.3276,185.25,185.1,20.17487606]
[1736456400685,20.17487606,185.21,185.07,20.17487606]
[1736456401090,2.7,185.2,185.14,2.7006]
[1736456401280,20.17487606,185.24,185.14,2.7006]
[1736456401476,20.17487606,185.24,185.1,20.17487606]
[1736456401789,20.17487606,185.24,185.07,20.17487606]
[1736456402480,20.17487606,185.24,185.1,20.17487606]
[1736456402685,2.7003,185.18,185.12,2.7009]
[1736456402886,20.17487606,185.21,185.07,20.17487606]
[1736456403286,26.07487606,185.21,185.07,20.17487606]
[1736456403585,20.17487606,185.18,185.06,1.5251]
[1736456403778,2.7009,185.14,185.05,1.6]
[1736456403979,20.17487606,185.15,185.05,1.6]
[1736456404176,20.17487606,185.12,185.0,1.5166]
[1736456404378,20.17487606,185.12,184.95,20.17487606]
[1736456404590,20.17487606,185.09,184.96,3.119]
[1736456404789,1.6275,185.08,184.96,3.119]
[1736456404988,2.7021,185.05,184.99,2.7028]
[1736456405288,1.6275,185.08,184.96,3.119]
[1736456406187,20.17487606,185.06,184.93,1.5166]
[1736456406490,1.6275,185.08,184.95,20.17487606]
[1736456406683,1.6275,185.08,184.96,1.5445]
[1736456407083,1.6275,185.08,184.98,20.17487606]
[1736456407279,110.27071102,185.16,185.01,20.17487606]
[1736456407481,2.7009,185.14,185.08,2.7016]
[1736456407686,7.4484,185.15,185.02,1.5775]
[1736456407886,2.7009,185.13,185.06,2.7018]
[1736456408081,7.4484,185.15,185.02,1.5775]
[1736456408289,1.5484,185.15,185.02,1.5775]
[1736456408492,1.5484,185.15,185.05,2.7019]
[1736456408886,20.17487606,185.13,185.02,1.5775]
[1736456409085,20.17487606,185.1,184.96,1.5445]
[1736456409290,20.17487606,185.07,184.96,3.122]
[1736456409490,1.6106,185.06,184.92,26.07487606]
[1736456409685,2.7024,185.03,184.97,2.7031]
[1736456409885,2.7024,185.03,184.92,26.07487606]
[1736456410091,2.7024,185.03,184.97,2.7031]
[1736456410690,2.7024,185.03,184.98,2.7031]
[1736456410989,1.6106,185.06,184.95,20.17487606]
[1736456411189,1.6106,185.06,185.0,2.7029]
[1736456411490,4.3128,185.06,185.0,2.7029]
[1736456412191,1.6106,185.06,184.91,32.82327978]
[1736456412690,2.9425,185.06,184.91,32.82327978]
[1736456412891,2.9425,185.06,184.94,2.7038]
[1736456413090,32.82327978,185.04,184.94,2.7038]
[1736456413289,32.82327978,185.04,184.91,32.82327978]
[1736456413493,2.7028,185.02,184.96,2.7036]
[1736456413693,32.82327978,185.04,184.91,32.82327978]
[1736456414196,2.7027,185.02,184.96,2.7036]
[1736456414492,32.82327978,185.04,184.89,3.1487]
[1736456414889,2.7032,184.99,184.93,2.704]
[1736456415196,2.9425,185.06,184.94,32.82327978]
[1736456415595,2.7024,185.05,184.99,2.7031]
[1736456415796,2.9425,185.06,184.94,32.82327978]
[1736456416496,2.9425,185.06,184.91,32.82327978]
[1736456416696,2.7029,185.01,184.95,2.7036]
[1736456416895,2.9425,185.06,184.91,32.82327978]
[1736456417094,32.82327978,185.04,184.89,3.1487]
[1736456417596,2.7032,184.99,184.94,2.7037]
[1736456418193,2.703,185.01,184.95,2.7036]
[1736456418395,2.9425,185.06,184.93,32.82327978]
[1736456418694,2.9425,185.06,185.01,2.7027]
[1736456418695,4.3127,185.06,185.01,2.7027]
[1736456418997,1.6106,185.06,184.96,32.82327978]
[1736456419198,90.09913496,185.12,184.97,3.253]
[1736456419397,1.5532,185.11,184.97,3.253]
[1736456419592,1.5532,185.11,185.01,2.7028]
[1736456419893,1.5532,185.11,184.97,3.253]
[1736456420090,2.7024,185.04,184.99,2.703]
[1736456420290,32.82327978,185.1,184.93,38.72327978]
[1736456420489,32.82327978,185.07,184.93,38.72327978]
[1736456420696,2.7028,185.02,184.97,2.7034]
[1736456420896,1.5532,185.11,184.96,32.82327978]
[1736456421094,1.5532,185.11,184.99,32.82327978]
[1736456421493,1.5532,185.11,185.0,3.253]
[1736456421791,2.7018,185.09,185.04,2.7024]
[1736456421986,1.5532,185.11,185.0,3.253]
[1736456422391,32.82327978,185.16,185.02,32.82327978]
[1736456422588,34.35377978,185.16,185.02,32.82327978]
[1736456422792,34.35377978,185.16,185.09,2.7016]
[1736456422793,2.7008,185.15,185.09,2.7016]
[1736456422993,122.92241474,185.19,185.05,32.82327978]
[1736456422994,9.40850805,185.18,185.05,32.82327978]
[1736456423696,34.15567978,185.19,185.02,32.82327978]
[1736456424092,1.3324,185.19,185.05,32.82327978]
[1736456424502,2.7011,185.13,185.07,2.7019]
[1736456424796,34.15567978,185.19,185.02,38.72327978]
[1736456425190,2.7008,185.15,185.09,2.7016]
[1736456425395,9.40850805,185.18,185.02,38.72327978]
[1736456425595,2.7011,185.13,185.02,38.72327978]
[1736456425799,9.40850805,185.18,185.02,38.72327978]
[1736456426303,32.82327978,185.16,185.02,32.82327978]
[1736456426499,32.82327978,185.16,185.01,1.5665]
[1736456426800,2.7018,185.09,185.03,2.7024]
[1736456427103,32.82327978,185.13,185.03,2.7024]
[1736456427305,2.7024,185.05,185.0,5.9559]
[1736456427501,32.82327978,185.1,185.0,3.253]
[1736456427696,32.82327978,185.1,185.0,1.6143]
[1736456427898,2.702,185.07,185.0,1.6143]
[1736456428097,32.82327978,185.1,185.0,1.6143]
[1736456428498,2.7024,185.05,185.0,4.3172]
[1736456428899,32.82327978,185.1,185.0,4.3172]
[1736456429101,32.82327978,185.1,185.0,1.6143]
[1736456429798,2.702,185.07,185.01,2.7028]
[1736456430103,32.82327978,185.1,185.01,2.7028]
[1736456430603,32.82327978,185.1,184.98,2.7031]
[1736456430801,34.15557978,185.1,184.98,2.7031]
[1736456430996,2.7025,185.04,184.93,1.648]
[1736456432204,2.7023,185.05,184.95,32.82327978]
[1736456432400,34.15557978,185.1,184.95,32.82327978]
[1736456432805,2.7022,185.06,185.01,2.7028]
[1736456435004,2.7023,185.05,185.0,2.703]
[1736456436297,2.7021,185.06,185.01,2.7028]
[1736456437297,1.3323,185.1,185.01,2.7028]
[1736456437496,2.7023,185.05,185.01,2.7028]
[1736456438099,1.5175,185.11,184.97,1.5228]
[1736456438304,88.76673496,185.13,185.02,20.19434758]
[1736456438607,88.76673496,185.12,185.03,1.6502]
[1736456439503,88.76673496,185.17,185.03,1.6502]
[1736456439700,20.19434758,185.15,185.03,1.6502]
[1736456440098,21.89688916,185.14,185.03,1.6502]
[1736456440292,2.7019,185.08,185.03,4.3526]
[1736456440806,20.19434758,185.12,185.03,1.6502]
[1736456441000,2.7019,185.08,185.03,4.3527]
[1736456441401,2.7021,185.07,185.02,2.7026]
[1736456441795,20.19434758,185.12,184.99,1.5085]
[1736456441999,2.702,185.07,185.03,2.7026]
[1736456442206,7.4266,185.11,184.99,1.5085]
[1736456442900,2.7019,185.08,185.03,2.7025]
[1736456445599,2.7023,185.05,185.01,2.7028]
[1736456445801,20.19434758,185.09,184.99,1.5085]
[1736456446708,2.7024,185.05,185.0,2.7029]
[1736456447006,20.19434758,185.09,185.0,2.7029]
[1736456447200,2.7027,185.03,184.99,4.2116]
[1736456447408,20.19434758,185.06,184.99,2.7031]
[1736456447600,20.19434758,185.06,184.97,1.5228]
[1736456447805,98.18541942,185.1,184.89,3.0592]
[1736456447806,20.19434758,185.03,184.89,3.0592]
[1736456448006,20.19434758,185.03,184.9,1.57]
[1736456448506,26.07434758,185.03,184.9,1.57]
[1736456448706,20.19434758,185.0,184.9,1.57]
[1736456449302,20.19434758,185.0,184.91,2.7043]
[1736456449700,20.19434758,184.97,184.82,20.19434758]
[1736456449907,20.19434758,184.97,184.84,1.5422]
[1736456450508,20.19434758,184.97,184.86,2.705]
[1736456450509,2.7044,184.91,184.86,2.705]
[1736456451110,20.19434758,184.97,184.84,1.5422]
[1736456451307,2.704,184.94,184.88,2.7046]
[1736456451507,20.19434758,184.97,184.88,2.7046]
[1736456453110,2.704,184.93,184.88,2.7046]
[1736456453313,91.62103496,185.02,184.85,20.19434758]
[1736456453913,91.62103496,185.02,184.91,2.7042]
[1736456454110,2.8543,185.02,184.91,2.7042]
[1736456454309,2.8543,185.02,184.85,20.19434758]
[1736456455209,2.7035,184.97,184.85,20.19434758]
[1736456455415,2.8543,185.02,184.84,1.5422]
[1736456455911,2.7038,184.95,184.84,1.5422]
[1736456456117,2.8543,185.02,184.86,20.19434758]
[1736456456316,2.7034,184.98,184.86,20.19434758]
[1736456456621,2.8543,185.02,184.86,20.19434758]
[1736456457018,2.7036,184.96,184.91,2.7043]
[1736456457414,2.8543,185.02,184.84,1.5422]
[1736456457620,2.704,184.93,184.88,2.7046]
[1736456457916,20.19434758,184.97,184.88,2.7046]
[1736456458219,2.704,184.94,184.84,1.5422]
[1736456458617,2.704,184.93,184.88,2.7046]
[1736456458807,2.704,184.93,184.84,1.5422]
[1736456459007,20.19434758,184.97,184.84,1.5422]
[1736456459209,20.19434758,185.0,184.84,21.73654758]
[1736456460425,20.19434758,184.97,184.84,1.5422]
[1736456461118,2.7041,184.93,184.88,2.7046]
[1736456461325,2.8543,185.02,184.87,20.19434758]
[1736456461720,2.7034,184.98,184.93,2.7039]
[1736456461924,2.8543,185.02,184.87,20.19434758]
[1736456462227,2.704,184.94,184.89,2.7046]
[1736456462618,2.8543,185.02,184.89,2.7046]
[1736456462819,2.7044,184.91,184.86,2.705]
[1736456463024,20.19434758,184.96,184.83,1.6295]
[1736456464030,2.704,184.93,184.88,2.7046]
[1736456464432,20.19434758,184.96,184.83,1.6295]
[1736456465624,2.7041,184.93,184.83,1.6295]
[1736456465826,20.19434758,184.99,184.84,20.19434758]
[1736456466231,2.704,184.93,184.84,20.19434758]
[1736456466934,2.704,184.93,184.89,2.7046]
[1736456467324,20.19434758,184.99,184.89,2.7046]
[1736456467730,20.19434758,184.96,184.88,2.7047]
[1736456468836,2.7041,184.93,184.88,2.7047]
[1736456470132,20.19434758,184.96,184.88,2.7047]
[1736456470338,20.19434758,184.93,184.83,1.6295]
[1736456470643,20.19434758,184.9,184.82,1.508]
[1736456470936,2.7049,184.87,184.82,1.508]
[1736456471529,1.5695,184.92,184.82,1.508]
[1736456471729,5.88,184.95,184.82,1.508]
[1736456472235,2.704,184.94,184.84,20.19434758]
[1736456472538,95.50513496,185.02,184.87,20.19434758]
[1736456472539,110.29388254,185.02,184.87,20.19434758]
[1736456472835,145.6911549,185.04,184.93,20.19434758]
[1736456472836,147.2606549,185.04,184.93,20.19434758]
[1736456473139,147.2606549,185.04,184.88,1.5109]
[1736456473140,145.6911549,185.04,184.99,20.19434758]
[1736456473439,2.7015,185.11,185.0,1.5109]
[1736456473632,1.5767,185.13,185.02,20.19434758]
[1736456473827,9.40791544,185.16,185.03,1.602]
[1736456474336,5.88,185.16,185.03,1.602]
[1736456474537,2.701,185.14,185.07,2.7019]
[1736456474737,5.88,185.16,185.03,1.602]
[1736456475635,2.7011,185.13,185.03,1.602]
[1736456476232,5.88,185.16,185.03,1.602]
[1736456476439,2.7013,185.12,185.03,1.602]
[1736456476635,5.88,185.16,185.03,1.602]
[1736456476837,2.7013,185.12,185.05,2.7022]
[1736456478040,2.701,185.15,185.03,1.602]
[1736456478638,2.701,185.15,185.07,2.7019]
[1736456478840,2.701,185.14,185.07,2.7019]
[1736456479439,2.7008,185.16,185.09,2.7016]
[1736456479840,7.4567,185.19,185.03,1.602]
[1736456480041,20.19434758,185.17,185.03,1.602]
[1736456480634,2.701,185.14,185.08,2.7017]
[1736456480836,2.701,185.14,185.03,1.602]
[1736456481039,7.4567,185.19,185.03,1.602]
[1736456481247,20.19434758,185.12,185.03,1.602]
[1736456481441,20.19434758,185.12,185.0,1.5109]
[1736456481745,20.19434758,185.09,185.0,1.5109]
[1736456481941,20.19434758,185.09,184.98,2.7032]
[1736456482146,1.5675,185.08,184.96,3.1043]
[1736456482540,2.7026,185.03,184.97,2.7034]
[1736456483443,2.7026,185.03,184.98,2.7033]
[1736456484045,2.7026,185.03,184.97,2.7034]
[1736456484543,1.5675,185.08,184.95,1.5444]
[1736456484745,20.19434758,185.03,184.92,1.5488]
[1736456484945,5.88,185.02,184.92,1.5488]
[1736456485347,2.7032,184.99,184.94,2.7039]
[1736456486447,20.19434758,185.06,184.92,1.5488]
[1736456486644,26.07434758,185.06,184.92,1.5488]
[1736456487348,2.7025,185.03,184.97,2.7033]
[1736456488250,2.7024,185.05,184.99,2.7031]
[1736456488439,1.5675,185.08,184.94,20.19434758]
[1736456488649,26.97,185.42,184.97,20.19434758]
[1736456488650,94.91087553,185.14,184.97,20.19434758]
[1736456488949,94.91087553,185.14,185.0,20.19434758]
[1736456489244,94.91087553,185.14,185.01,4.7525]
[1736456489450,2.7012,185.12,185.01,4.7525]
[1736456489850,2.7012,185.12,185.04,2.7023]
[1736456490050,2.7012,185.12,185.01,4.7525]
[1736456490646,2.7017,185.09,185.03,2.7024]
[1736456490847,20.19434758,185.13,185.01,4.7525]
[1736456491249,2.7021,185.07,185.01,4.7525]
[1736456491445,20.19434758,185.1,184.95,20.19434758]
[1736456491749,20.19434758,185.1,184.96,3.1627]
[1736456491952,20.19434758,185.1,184.98,2.7032]
[1736456491953,2.7025,185.04,184.98,2.7032]
[1736456492155,2.7025,185.04,184.96,3.1627]
[1736456492447,2.7023,185.05,184.99,2.703]
[1736456492652,20.19434758,185.1,184.96,3.1627]
[1736456493043,2.7021,185.06,185.0,2.7029]
[1736456493455,20.19434758,185.1,184.96,3.1627]
[1736456493750,20.19434758,185.07,184.98,2.7033]
[1736456494158,20.19434758,185.07,184.96,3.1627]
[1736456494754,2.7027,185.03,184.98,2.7033]
[1736456495053,26.07434758,185.07,184.96,1.6534]
[1736456495851,2.7027,185.03,184.98,2.7031]
[1736456496053,26.07434758,185.07,184.96,1.6534]
[1736456496651,2.7025,185.04,185.0,2.703]
[1736456496847,5.88,185.07,184.96,1.6534]
[1736456498357,20.19434758,185.11,184.97,20.19434758]
[1736456498547,2.7018,185.08,185.03,2.7024]
[1736456498749,1.6178,185.15,185.03,20.19434758]
[1736456498953,89.03087553,185.17,185.04,3.1174]
[1736456499160,2.7007,185.16,185.11,2.7014]
[1736456500358,2.7011,185.14,185.09,2.7015]
[1736456500658,26.07434758,185.2,185.04,3.1174]
[1736456500861,2.7009,185.15,185.09,2.7016]
[1736456501050,26.07434758,185.2,185.09,2.7016]
[1736456501455,2.7009,185.15,185.1,2.7015]
[1736456501656,26.07434758,185.2,185.04,3.1174]
[1736456502658,2.701,185.14,185.08,2.7017]
[1736456502859,2.701,185.14,185.04,3.1174]
[1736456503457,26.07434758,185.2,185.04,3.1174]
[1736456503759,20.19434758,185.17,185.08,2.7017]
[1736456503970,2.7008,185.15,185.04,3.1174]
[1736456504254,2.7008,185.15,185.07,2.7019]
[1736456504452,2.7008,185.15,185.04,3.1174]
[1736456504850,2.7007,185.16,185.11,2.7014]
[1736456505054,28.97384758,185.23,185.09,20.19434758]
[1736456505354,2.6998,185.22,185.17,2.7005]
[1736456505659,89.03087553,185.25,185.17,2.7005]
[1736456505854,2.6995,185.24,185.15,20.19434758]
[1736456506059,89.03087553,185.25,185.15,20.19434758]
[1736456506261,89.03087553,185.25,185.18,20.19434758]
[1736456506456,21.83581433,185.28,185.19,1.6114]
[1736456506659,21.83581433,185.28,185.21,20.19434758]
[1736456506862,21.83581433,185.28,185.22,1.6229]
[1736456507051,21.83581433,185.28,185.26,2.6991]
[1736456507355,21.83581433,185.28,185.22,1.6229]
[1736456507551,112.37498986,185.34,185.24,20.19434758]
[1736456507757,115.07298986,185.34,185.27,2.6989]
[1736456507960,113.56468986,185.34,185.24,20.19434758]
[1736456508358,110.86668986,185.34,185.27,2.699]
[1736456508562,2.6979,185.35,185.24,20.19434758]
[1736456508862,96.21597553,185.39,185.24,20.19434758]
[1736456509058,2.6975,185.38,185.31,2.6984]
[1736456509264,112.40816743,185.4,185.22,27.67724758]
[1736456509463,20.19434758,185.38,185.22,27.67724758]
[1736456509755,2.6985,185.32,185.22,27.67724758]
[1736456509956,20.19434758,185.38,185.22,27.67724758]
[1736456510160,2.698,185.35,185.28,2.6988]
[1736456510360,20.19434758,185.38,185.22,27.67724758]
[1736456510560,1.5726,185.4,185.25,20.19434758]
[1736456510760,2.6975,185.38,185.26,1.6066]
[1736456511063,21.83064758,185.41,185.28,20.19434758]
[1736456511258,21.83064758,185.41,185.26,1.6066]
[1736456511459,20.19434758,185.38,185.26,1.6066]
[1736456511966,2.6981,185.34,185.27,2.699]
[1736456512162,20.19434758,185.38,185.26,1.6066]
[1736456512861,2.6979,185.35,185.28,2.6988]
[1736456514260,20.19434758,185.38,185.22,27.67724758]
[1736456514463,109.22522311,185.38,185.22,27.67724758]
[1736456514862,2.6983,185.33,185.26,2.6991]
[1736456515064,2.6983,185.33,185.22,27.67724758]
[1736456515361,109.22522311,185.38,185.22,27.67724758]
[1736456515362,2.698,185.34,185.28,2.6988]